[Event "*** Titled Tuesday Blitz"]
[Site "Chess.com"]
[Date "2020.04.28"]
[Round "8"]
[White "Aureliano-Buendia"]
[Black "AleksanderHnydiuk"]
[Result "1-0"]
[WhiteElo "2448"]
[BlackElo "2561"]
[TimeControl "180+1"]
[EndTime "11:37:13 PDT"]
[Termination "Aureliano-Buendia won by checkmate"]

1. d4 {[%clk 0:03:00.7]} 1... Nf6 {[%clk 0:02:59.5]} 2. c4 {[%clk 0:03:00.6]}
2... c5 {[%clk 0:02:59.4]} 3. d5 {[%clk 0:03:00.7]} 3... b5 {[%clk 0:02:59.7]}
4. f3 {[%clk 0:03:00]} 4... g6 {[%clk 0:02:48.7]} 5. e4 {[%clk 0:03:00.1]} 5...
Bg7 {[%clk 0:02:49]} 6. Be3 {[%clk 0:02:57.1]} 6... d6 {[%clk 0:02:42.3]} 7.
cxb5 {[%clk 0:02:55.4]} 7... O-O {[%clk 0:02:41.9]} 8. Nc3 {[%clk 0:02:54.2]}
8... e6 {[%clk 0:02:39.7]} 9. Bc4 {[%clk 0:02:48.7]} 9... a6 {[%clk 0:02:33.4]}
10. dxe6 {[%clk 0:02:28.2]} 10... fxe6 {[%clk 0:02:29.6]} 11. e5 {[%clk
0:02:25.1]} 11... Nh5 {[%clk 0:02:17]} 12. Qb3 {[%clk 0:01:36]} 12... d5 {[%clk
0:01:59.2]} 13. Bxd5 {[%clk 0:01:08.2]} 13... exd5 {[%clk 0:01:58.1]} 14. Nxd5
{[%clk 0:01:07.5]} 14... c4 {[%clk 0:01:39.3]} 15. Qxc4 {[%clk 0:01:03.2]} 15...
Be6 {[%clk 0:01:39.1]} 16. Rd1 {[%clk 0:01:00.7]} 16... axb5 {[%clk 0:01:37]}
17. Qxb5 {[%clk 0:00:56.7]} 17... Qa5+ {[%clk 0:01:23]} 18. Qxa5 {[%clk
0:00:52.5]} 18... Rxa5 {[%clk 0:01:23.9]} 19. Nc3 {[%clk 0:00:45.3]} 19... Bxe5
{[%clk 0:01:17.8]} 20. Nge2 {[%clk 0:00:45.1]} 20... Bc4 {[%clk 0:01:08.6]} 21.
a3 {[%clk 0:00:42]} 21... Nc6 {[%clk 0:01:06.3]} 22. Nd4 {[%clk 0:00:38.8]}
22... Nxd4 {[%clk 0:00:58.8]} 23. Bxd4 {[%clk 0:00:39.7]} 23... Nf4 {[%clk
0:00:57.4]} 24. Bxe5 {[%clk 0:00:30]} 24... Rxe5+ {[%clk 0:00:52.9]} 25. Kd2
{[%clk 0:00:11]} 25... Rd8+ {[%clk 0:00:48.1]} 26. Kc2 {[%clk 0:00:10.8]} 26...
Bd3+ {[%clk 0:00:44.8]} 27. Kb3 {[%clk 0:00:08.8]} 27... Nxg2 {[%clk 0:00:40.3]}
28. Rd2 {[%clk 0:00:07.7]} 28... Bc4+ {[%clk 0:00:38.2]} 29. Kc2 {[%clk
0:00:07.6]} 29... Ne3+ {[%clk 0:00:37.8]} 30. Kc1 {[%clk 0:00:07.5]} 30... Rxd2
{[%clk 0:00:37.3]} 31. Kxd2 {[%clk 0:00:08]} 31... Nf5 {[%clk 0:00:37.2]} 32.
Ne4 {[%clk 0:00:07.4]} 32... Bd5 {[%clk 0:00:34.2]} 33. Re1 {[%clk 0:00:06.4]}
33... Bxe4 {[%clk 0:00:33.2]} 34. fxe4 {[%clk 0:00:06]} 34... Nd6 {[%clk
0:00:33.4]} 35. Kd3 {[%clk 0:00:06.5]} 35... Kf7 {[%clk 0:00:32.4]} 36. b4
{[%clk 0:00:07]} 36... Ke6 {[%clk 0:00:32.4]} 37. a4 {[%clk 0:00:07.2]} 37...
Rh5 {[%clk 0:00:32.6]} 38. Re2 {[%clk 0:00:07.3]} 38... Rh3+ {[%clk 0:00:31.6]}
39. Kd4 {[%clk 0:00:07.6]} 39... Rb3 {[%clk 0:00:31.2]} 40. Kc5 {[%clk
0:00:06.8]} 40... Rc3+ {[%clk 0:00:27.9]} 41. Kb6 {[%clk 0:00:06.3]} 41... Kd7
{[%clk 0:00:28.1]} 42. b5 {[%clk 0:00:06.3]} 42... Nc8+ {[%clk 0:00:27.6]} 43.
Ka6 {[%clk 0:00:05.7]} 43... Kc7 {[%clk 0:00:25]} 44. a5 {[%clk 0:00:05.7]}
44... Nd6 {[%clk 0:00:22.8]} 45. e5 {[%clk 0:00:05.1]} 45... Nb7 {[%clk
0:00:20.2]} 46. e6 {[%clk 0:00:02.5]} 46... Nc5+ {[%clk 0:00:20]} 47. Ka7 {[%clk
0:00:02.9]} 47... Kd8 {[%clk 0:00:17.7]} 48. e7+ {[%clk 0:00:02.9]} 48... Ke8
{[%clk 0:00:17.9]} 49. Re5 {[%clk 0:00:03.5]} 49... Rc4 {[%clk 0:00:16.2]} 50.
b6 {[%clk 0:00:02.9]} 50... Nd7 {[%clk 0:00:16.3]} 51. b7 {[%clk 0:00:02.5]}
51... Rb4 {[%clk 0:00:14.7]} 52. Rd5 {[%clk 0:00:02.3]} 52... g5 {[%clk
0:00:12.1]} 53. Rxd7 {[%clk 0:00:02.5]} 53... Kxd7 {[%clk 0:00:10.8]} 54. b8=Q
{[%clk 0:00:03.4]} 54... Rxb8 {[%clk 0:00:10.9]} 55. Kxb8 {[%clk 0:00:04.3]}
55... g4 {[%clk 0:00:11.2]} 56. a6 {[%clk 0:00:04.5]} 56... h5 {[%clk
0:00:11.7]} 57. e8=Q+ {[%clk 0:00:04.8]} 57... Kxe8 {[%clk 0:00:10.3]} 58. a7
{[%clk 0:00:05.7]} 58... h4 {[%clk 0:00:10.6]} 59. a8=Q {[%clk 0:00:06.6]} 59...
g3 {[%clk 0:00:11.5]} 60. hxg3 {[%clk 0:00:07.2]} 60... hxg3 {[%clk 0:00:12.4]}
61. Qb7 {[%clk 0:00:06]} 61... g2 {[%clk 0:00:11.9]} 62. Qxg2 {[%clk 0:00:06.9]}
62... Ke7 {[%clk 0:00:11.3]} 63. Qf3 {[%clk 0:00:07.8]} 63... Kd6 {[%clk
0:00:12.2]} 64. Kb7 {[%clk 0:00:08.5]} 64... Kc5 {[%clk 0:00:13.1]} 65. Qc6+
{[%clk 0:00:09]} 65... Kb4 {[%clk 0:00:14]} 66. Kc7 {[%clk 0:00:09.6]} 66... Ka5
{[%clk 0:00:14.9]} 67. Kd6 {[%clk 0:00:10.5]} 67... Kb4 {[%clk 0:00:15.1]} 68.
Kd5 {[%clk 0:00:11.4]} 68... Ka5 {[%clk 0:00:15.6]} 69. Qb7 {[%clk 0:00:11.9]}
69... Ka4 {[%clk 0:00:15.6]} 70. Kc4 {[%clk 0:00:12.8]} 70... Ka5 {[%clk
0:00:16.5]} 71. Qb5# {[%clk 0:00:13.2]} 1-0

[Event "*** Titled Tuesday Blitz"]
[Site "Chess.com"]
[Date "2020.04.28"]
[Round "8"]
[White "Twitch_ElhamBlitz05"]
[Black "UCantHandleDenker"]
[Result "0-1"]
[WhiteElo "2705"]
[BlackElo "2583"]
[TimeControl "180+1"]
[EndTime "11:37:14 PDT"]
[Termination "UCantHandleDenker won on time"]

1. e4 {[%clk 0:03:00.9]} 1... c5 {[%clk 0:02:59.6]} 2. Ne2 {[%clk 0:02:53.1]}
2... d6 {[%clk 0:02:59.3]} 3. Nbc3 {[%clk 0:02:53.5]} 3... Nf6 {[%clk
0:02:58.8]} 4. g3 {[%clk 0:02:51.8]} 4... g6 {[%clk 0:02:58.6]} 5. Bg2 {[%clk
0:02:52.4]} 5... Bg7 {[%clk 0:02:59.1]} 6. O-O {[%clk 0:02:52.1]} 6... Nc6
{[%clk 0:02:59.7]} 7. d4 {[%clk 0:02:50.8]} 7... cxd4 {[%clk 0:02:59.2]} 8. Nxd4
{[%clk 0:02:51.7]} 8... Bd7 {[%clk 0:02:48.8]} 9. Be3 {[%clk 0:02:50.7]} 9...
Ng4 {[%clk 0:02:35.7]} 10. Nxc6 {[%clk 0:02:29.7]} 10... Nxe3 {[%clk 0:02:34.9]}
11. Nxd8 {[%clk 0:02:24.6]} 11... Nxd1 {[%clk 0:02:34.7]} 12. Nxd1 {[%clk
0:02:14.4]} 12... Rxd8 {[%clk 0:02:31.6]} 13. c3 {[%clk 0:02:15.3]} 13... O-O
{[%clk 0:02:29.7]} 14. Ne3 {[%clk 0:02:13.8]} 14... Bc6 {[%clk 0:02:26.9]} 15.
Rfd1 {[%clk 0:02:07.4]} 15... Rc8 {[%clk 0:02:24.4]} 16. Rd2 {[%clk 0:02:03.5]}
16... Rc7 {[%clk 0:02:23.4]} 17. Re1 {[%clk 0:02:02.7]} 17... Rfc8 {[%clk
0:02:22.2]} 18. Rde2 {[%clk 0:02:02.7]} 18... b5 {[%clk 0:02:18.2]} 19. Nd5
{[%clk 0:02:01.9]} 19... Bxd5 {[%clk 0:02:17.4]} 20. exd5 {[%clk 0:02:02.8]}
20... Bf6 {[%clk 0:02:17.7]} 21. a3 {[%clk 0:02:02.8]} 21... a5 {[%clk
0:02:16.1]} 22. Re4 {[%clk 0:02:03.7]} 22... Rb8 {[%clk 0:02:11.1]} 23. Bf3
{[%clk 0:01:39.6]} 23... b4 {[%clk 0:02:03.5]} 24. cxb4 {[%clk 0:01:32.1]} 24...
axb4 {[%clk 0:02:03.5]} 25. axb4 {[%clk 0:01:30.7]} 25... Rcb7 {[%clk
0:02:03.4]} 26. R1e3 {[%clk 0:01:17]} 26... Rxb4 {[%clk 0:01:58.1]} 27. Rxb4
{[%clk 0:01:16.6]} 27... Rxb4 {[%clk 0:01:58.7]} 28. b3 {[%clk 0:01:17.1]} 28...
h5 {[%clk 0:01:57.1]} 29. Be2 {[%clk 0:01:15.3]} 29... Rd4 {[%clk 0:01:51.5]}
30. Bc4 {[%clk 0:01:11.5]} 30... Rd2 {[%clk 0:01:42.9]} 31. Rd3 {[%clk
0:00:59.1]} 31... Rb2 {[%clk 0:01:40.3]} 32. Re3 {[%clk 0:00:59.5]} 32... Kf8
{[%clk 0:01:37.6]} 33. Re2 {[%clk 0:00:58.3]} 33... Rb1+ {[%clk 0:01:33.6]} 34.
Kg2 {[%clk 0:00:58.7]} 34... Bd4 {[%clk 0:01:34.2]} 35. Ra2 {[%clk 0:00:58.4]}
35... Kg7 {[%clk 0:01:30.5]} 36. Rd2 {[%clk 0:00:55.7]} 36... Bc5 {[%clk
0:01:29]} 37. Ra2 {[%clk 0:00:54.7]} 37... Kf6 {[%clk 0:01:28.1]} 38. Re2 {[%clk
0:00:53.3]} 38... Bd4 {[%clk 0:01:17]} 39. h4 {[%clk 0:00:51.8]} 39... Bc5
{[%clk 0:01:15.9]} 40. Re4 {[%clk 0:00:47.4]} 40... Rb2 {[%clk 0:01:12.4]} 41.
Rf4+ {[%clk 0:00:45.5]} 41... Kg7 {[%clk 0:01:10.3]} 42. Rf3 {[%clk 0:00:45.7]}
42... f5 {[%clk 0:01:06.5]} 43. Kf1 {[%clk 0:00:41.6]} 43... Kf6 {[%clk
0:01:06.4]} 44. Kg2 {[%clk 0:00:28]} 44... Ke5 {[%clk 0:01:05.6]} 45. Rf4 {[%clk
0:00:23.5]} 45... Bd4 {[%clk 0:00:46.5]} 46. Rf3 {[%clk 0:00:22.8]} 46... Bc5
{[%clk 0:00:45.7]} 47. Rf4 {[%clk 0:00:20.7]} 47... Kf6 {[%clk 0:00:25.8]} 48.
Kf1 {[%clk 0:00:17.4]} 48... Ke5 {[%clk 0:00:18.6]} 49. Ke1 {[%clk 0:00:11.2]}
49... Rb1+ {[%clk 0:00:15.5]} 50. Ke2 {[%clk 0:00:09.5]} 50... Rb2+ {[%clk
0:00:16.4]} 51. Kf1 {[%clk 0:00:08.4]} 51... Bd4 {[%clk 0:00:15.7]} 52. Rf3
{[%clk 0:00:04.5]} 52... Ke4 {[%clk 0:00:13.2]} 53. Kg2 {[%clk 0:00:02.7]} 53...
Bc5 {[%clk 0:00:09.9]} 54. Bd3+ {[%clk 0:00:02.1]} 54... Kxd5 {[%clk 0:00:09]}
55. Bc4+ {[%clk 0:00:03]} 55... Ke5 {[%clk 0:00:09.4]} 56. Bf7 {[%clk
0:00:03.1]} 56... Kf6 {[%clk 0:00:07]} 57. Bc4 {[%clk 0:00:02.2]} 57... e5
{[%clk 0:00:07.9]} 58. Bd5 {[%clk 0:00:01.4]} 58... e4 {[%clk 0:00:08.4]} 59.
Bxe4 {[%clk 0:00:01.8]} 59... Ke5 {[%clk 0:00:08.8]} 60. Bc6 {[%clk 0:00:02.2]}
60... d5 {[%clk 0:00:09.2]} 61. Bb5 {[%clk 0:00:02.5]} 61... d4 {[%clk
0:00:09.7]} 62. Bc4 {[%clk 0:00:02.9]} 62... Ke4 {[%clk 0:00:09.6]} 63. Rd3
{[%clk 0:00:02.9]} 63... Rc2 {[%clk 0:00:08.1]} 64. Rf3 {[%clk 0:00:02]} 64...
Rc3 {[%clk 0:00:09]} 0-1

[Event "*** Titled Tuesday Blitz"]
[Site "Chess.com"]
[Date "2020.04.28"]
[Round "8"]
[White "Gloomy_Wanderer"]
[Black "Kezin_Roman"]
[Result "1-0"]
[WhiteElo "2829"]
[BlackElo "2710"]
[TimeControl "180+1"]
[EndTime "11:37:16 PDT"]
[Termination "Gloomy_Wanderer won by resignation"]

1. d4 {[%clk 0:03:00.9]} 1... d5 {[%clk 0:03:00]} 2. c4 {[%clk 0:03:01]} 2... e6
{[%clk 0:03:00.3]} 3. Nf3 {[%clk 0:03:01.2]} 3... Nf6 {[%clk 0:03:00.6]} 4. g3
{[%clk 0:03:01.7]} 4... Be7 {[%clk 0:03:00.7]} 5. Bg2 {[%clk 0:03:01.7]} 5...
O-O {[%clk 0:03:01.2]} 6. O-O {[%clk 0:03:01.5]} 6... dxc4 {[%clk 0:03:01.7]} 7.
Ne5 {[%clk 0:03:01.9]} 7... c5 {[%clk 0:03:00.6]} 8. dxc5 {[%clk 0:03:01.6]}
8... Qc7 {[%clk 0:03:00.8]} 9. Nxc4 {[%clk 0:03:01.8]} 9... Rd8 {[%clk
0:03:01.3]} 10. Nbd2 {[%clk 0:03:01.2]} 10... Qxc5 {[%clk 0:02:50.7]} 11. b3
{[%clk 0:03:01.3]} 11... Nc6 {[%clk 0:02:50.8]} 12. Bb2 {[%clk 0:02:59.8]} 12...
Bd7 {[%clk 0:02:00.3]} 13. Rc1 {[%clk 0:02:54.1]} 13... Qh5 {[%clk 0:01:52.2]}
14. e4 {[%clk 0:02:39.3]} 14... Qxd1 {[%clk 0:01:48.6]} 15. Rfxd1 {[%clk
0:02:40.2]} 15... Be8 {[%clk 0:01:47.1]} 16. e5 {[%clk 0:02:31.5]} 16... Nd5
{[%clk 0:01:46.9]} 17. Ne4 {[%clk 0:02:31]} 17... f6 {[%clk 0:01:27]} 18. Ned6
{[%clk 0:01:55.9]} 18... Bh5 {[%clk 0:01:23.2]} 19. Rd2 {[%clk 0:01:39.2]} 19...
fxe5 {[%clk 0:01:14.4]} 20. Nxb7 {[%clk 0:01:24.3]} 20... Rd7 {[%clk 0:01:14.4]}
21. Nxe5 {[%clk 0:01:22.7]} 21... Nxe5 {[%clk 0:01:04.6]} 22. Bxe5 {[%clk
0:01:23.6]} 22... Bb4 {[%clk 0:00:24.1]} 23. Rd4 {[%clk 0:01:12.4]} 23... Ba3
{[%clk 0:00:23.6]} 24. Rc2 {[%clk 0:00:54.5]} 24... Bg6 {[%clk 0:00:18.7]} 25.
Re2 {[%clk 0:00:40.8]} 25... Rc8 {[%clk 0:00:17.8]} 26. Na5 {[%clk 0:00:35]}
26... Rc1+ {[%clk 0:00:17.8]} 27. Bf1 {[%clk 0:00:35.4]} 27... Bc5 {[%clk
0:00:18.1]} 28. Rc4 {[%clk 0:00:34.6]} 28... Bd3 {[%clk 0:00:16.1]} 29. Rxc1
{[%clk 0:00:34]} 29... Bxe2 {[%clk 0:00:16]} 30. Bxe2 {[%clk 0:00:34.5]} 30...
Bb6 {[%clk 0:00:16.2]} 31. Nc4 {[%clk 0:00:34.8]} 31... Bd8 {[%clk 0:00:15.4]}
32. f4 {[%clk 0:00:34.5]} 32... Nb4 {[%clk 0:00:15.5]} 33. a3 {[%clk 0:00:33]}
33... Nd5 {[%clk 0:00:14.9]} 34. Rd1 {[%clk 0:00:33.1]} 34... g5 {[%clk
0:00:15.4]} 35. fxg5 {[%clk 0:00:32.4]} 35... Bxg5 {[%clk 0:00:15.7]} 36. Bf3
{[%clk 0:00:32.9]} 36... a6 {[%clk 0:00:12]} 37. Rd3 {[%clk 0:00:31.7]} 37...
Rb7 {[%clk 0:00:10.2]} 38. Bxd5 {[%clk 0:00:27.7]} 38... exd5 {[%clk 0:00:11.1]}
39. Nd6 {[%clk 0:00:27.3]} 39... Rc7 {[%clk 0:00:09.8]} 40. Rxd5 {[%clk
0:00:26.1]} 40... Rc2 {[%clk 0:00:10.3]} 41. Bf4 {[%clk 0:00:25.6]} 41... Bf6
{[%clk 0:00:09.6]} 42. Ne4 {[%clk 0:00:25.6]} 42... Be7 {[%clk 0:00:09.1]} 43.
b4 {[%clk 0:00:25.4]} 43... Ra2 {[%clk 0:00:08.3]} 44. Ra5 {[%clk 0:00:25.3]}
44... Re2 {[%clk 0:00:05.7]} 45. Nc3 {[%clk 0:00:22.7]} 45... Rc2 {[%clk
0:00:04.9]} 46. Nd5 {[%clk 0:00:23]} 46... Bf8 {[%clk 0:00:03.9]} 47. Rxa6
{[%clk 0:00:22.8]} 47... Bg7 {[%clk 0:00:04.8]} 48. Ra8+ {[%clk 0:00:21.8]}
48... Kf7 {[%clk 0:00:04.7]} 49. Ra7+ {[%clk 0:00:22.3]} 49... Kg6 {[%clk
0:00:05.4]} 50. Ne7+ {[%clk 0:00:20.4]} 50... Kh5 {[%clk 0:00:05.6]} 51. Nf5
{[%clk 0:00:20.4]} 51... Bb2 {[%clk 0:00:05.1]} 52. h3 {[%clk 0:00:19.7]} 52...
Kg6 {[%clk 0:00:04.6]} 53. g4 {[%clk 0:00:19.1]} 53... Rc4 {[%clk 0:00:03.8]}
54. Be3 {[%clk 0:00:18.5]} 54... Re4 {[%clk 0:00:03.4]} 55. Kf2 {[%clk
0:00:18.5]} 55... Re8 {[%clk 0:00:02]} 56. Kf3 {[%clk 0:00:18.6]} 56... Kf6
{[%clk 0:00:02.4]} 57. Bd4+ {[%clk 0:00:18.4]} 57... Bxd4 {[%clk 0:00:02.2]} 58.
Nxd4 {[%clk 0:00:19.3]} 58... h6 {[%clk 0:00:01.1]} 59. Nf5 {[%clk 0:00:19.4]}
59... Ke5 {[%clk 0:00:02]} 60. Ra5+ {[%clk 0:00:19]} 60... Kf6 {[%clk
0:00:01.7]} 61. Nxh6 {[%clk 0:00:18.9]} 61... Rd8 {[%clk 0:00:02.6]} 62. Nf5
{[%clk 0:00:19.2]} 62... Rd3+ {[%clk 0:00:02.8]} 63. Ne3 {[%clk 0:00:19.9]}
63... Rb3 {[%clk 0:00:02.8]} 64. Ke4 {[%clk 0:00:20.4]} 64... Ke6 {[%clk
0:00:02.3]} 65. h4 {[%clk 0:00:20.9]} 65... Kd7 {[%clk 0:00:03.2]} 66. Ra6
{[%clk 0:00:20.9]} 66... Ke7 {[%clk 0:00:04.1]} 67. h5 {[%clk 0:00:21.3]} 67...
Kf7 {[%clk 0:00:05]} 68. h6 {[%clk 0:00:21.9]} 68... Kg8 {[%clk 0:00:05.1]} 69.
g5 {[%clk 0:00:22.4]} 69... Kh7 {[%clk 0:00:06]} 70. Ng4 {[%clk 0:00:21.7]}
70... Rb1 {[%clk 0:00:06.6]} 71. Ne5 {[%clk 0:00:21.2]} 71... Re1+ {[%clk
0:00:06]} 72. Kf4 {[%clk 0:00:21.6]} 72... Rf1+ {[%clk 0:00:06.6]} 73. Kg3
{[%clk 0:00:21.8]} 73... Rg1+ {[%clk 0:00:06.6]} 74. Kf4 {[%clk 0:00:20.8]}
74... Rf1+ {[%clk 0:00:06.8]} 75. Kg4 {[%clk 0:00:21.1]} 75... Rg1+ {[%clk
0:00:06.9]} 76. Kf5 {[%clk 0:00:21.8]} 76... Rf1+ {[%clk 0:00:07.2]} 77. Ke6
{[%clk 0:00:22.3]} 77... Re1 {[%clk 0:00:07.8]} 78. Ra7+ {[%clk 0:00:22.3]}
78... Kg8 {[%clk 0:00:08.1]} 79. g6 {[%clk 0:00:22]} 1-0

[Event "*** Titled Tuesday Blitz"]
[Site "Chess.com"]
[Date "2020.04.28"]
[Round "8"]
[White "Hanging_pointer"]
[Black "Firehand33"]
[Result "1-0"]
[WhiteElo "2615"]
[BlackElo "2721"]
[TimeControl "180+1"]
[EndTime "11:37:17 PDT"]
[Termination "Hanging_pointer won by checkmate"]

1. d4 {[%clk 0:03:00.9]} 1... Nf6 {[%clk 0:02:58.9]} 2. c4 {[%clk 0:02:50]} 2...
e6 {[%clk 0:02:59]} 3. Nf3 {[%clk 0:02:50]} 3... d5 {[%clk 0:02:58.9]} 4. Nc3
{[%clk 0:02:48]} 4... c5 {[%clk 0:02:57.8]} 5. cxd5 {[%clk 0:02:47.8]} 5... Nxd5
{[%clk 0:02:57.9]} 6. g3 {[%clk 0:02:48.4]} 6... Nxc3 {[%clk 0:02:50.4]} 7. bxc3
{[%clk 0:02:45.4]} 7... cxd4 {[%clk 0:02:50.4]} 8. cxd4 {[%clk 0:02:44.9]} 8...
Bb4+ {[%clk 0:02:50.9]} 9. Bd2 {[%clk 0:02:44.6]} 9... Bxd2+ {[%clk 0:02:51.1]}
10. Qxd2 {[%clk 0:02:45.5]} 10... b6 {[%clk 0:02:51.4]} 11. Bg2 {[%clk
0:02:45.5]} 11... Bb7 {[%clk 0:02:51.4]} 12. O-O {[%clk 0:02:45.7]} 12... O-O
{[%clk 0:02:51.6]} 13. Rac1 {[%clk 0:02:43.4]} 13... Be4 {[%clk 0:02:46.4]} 14.
Qf4 {[%clk 0:02:38]} 14... Qd5 {[%clk 0:02:41.8]} 15. Qe5 {[%clk 0:01:57.4]}
15... Nc6 {[%clk 0:02:23.3]} 16. Qxd5 {[%clk 0:01:55.8]} 16... Bxd5 {[%clk
0:02:23.2]} 17. a3 {[%clk 0:01:43.2]} 17... Rac8 {[%clk 0:02:22]} 18. e3 {[%clk
0:01:39.4]} 18... f6 {[%clk 0:02:05.8]} 19. Nd2 {[%clk 0:01:28.7]} 19... Bxg2
{[%clk 0:02:05.2]} 20. Kxg2 {[%clk 0:01:29.6]} 20... Na5 {[%clk 0:02:04.8]} 21.
Kf3 {[%clk 0:01:24.9]} 21... Kf7 {[%clk 0:02:04.6]} 22. Ke4 {[%clk 0:01:24.6]}
22... Ke7 {[%clk 0:02:04.7]} 23. Kd3 {[%clk 0:01:23.9]} 23... Kd7 {[%clk
0:02:03.7]} 24. e4 {[%clk 0:01:21.7]} 24... b5 {[%clk 0:01:50.4]} 25. f4 {[%clk
0:01:10.5]} 25... a6 {[%clk 0:01:39.5]} 26. g4 {[%clk 0:01:08.6]} 26... Nb7
{[%clk 0:01:21.6]} 27. f5 {[%clk 0:01:00.8]} 27... Nd6 {[%clk 0:01:13.6]} 28.
Nb3 {[%clk 0:00:44.1]} 28... Nb7 {[%clk 0:00:59.7]} 29. h4 {[%clk 0:00:32.5]}
29... a5 {[%clk 0:00:57.4]} 30. Ke3 {[%clk 0:00:21.8]} 30... a4 {[%clk
0:00:57.1]} 31. Nd2 {[%clk 0:00:17]} 31... Nd6 {[%clk 0:00:56.9]} 32. fxe6+
{[%clk 0:00:14.1]} 32... Kxe6 {[%clk 0:00:56.8]} 33. d5+ {[%clk 0:00:15]} 33...
Kd7 {[%clk 0:00:55]} 34. Kd4 {[%clk 0:00:15.4]} 34... h5 {[%clk 0:00:40]} 35. g5
{[%clk 0:00:15.4]} 35... Rxc1 {[%clk 0:00:39.2]} 36. Rxc1 {[%clk 0:00:13.3]}
36... fxg5 {[%clk 0:00:39.1]} 37. hxg5 {[%clk 0:00:12.8]} 37... Rf2 {[%clk
0:00:39.7]} 38. Rd1 {[%clk 0:00:08]} 38... h4 {[%clk 0:00:37.1]} 39. e5 {[%clk
0:00:07.7]} 39... Nf5+ {[%clk 0:00:36.8]} 40. Ke4 {[%clk 0:00:07.5]} 40... h3
{[%clk 0:00:35.9]} 41. Nf3 {[%clk 0:00:07.8]} 41... Ng3+ {[%clk 0:00:32.3]} 42.
Kf4 {[%clk 0:00:06.6]} 42... Rf1 {[%clk 0:00:27.2]} 43. Rd2 {[%clk 0:00:05.3]}
43... Nh5+ {[%clk 0:00:22.4]} 44. Kg4 {[%clk 0:00:05.7]} 44... g6 {[%clk
0:00:22.4]} 45. Kxh3 {[%clk 0:00:05.1]} 45... Nf4+ {[%clk 0:00:22]} 46. Kg4
{[%clk 0:00:05]} 46... Nh5 {[%clk 0:00:21.8]} 47. e6+ {[%clk 0:00:04.2]} 47...
Kd6 {[%clk 0:00:21.7]} 48. Re2 {[%clk 0:00:04.5]} 48... Kxd5 {[%clk 0:00:20.2]}
49. e7 {[%clk 0:00:04.3]} 49... Ng7 {[%clk 0:00:20.9]} 50. e8=Q {[%clk
0:00:04.3]} 50... Nxe8 {[%clk 0:00:21.5]} 51. Rxe8 {[%clk 0:00:04.7]} 51... Ra1
{[%clk 0:00:22]} 52. Rb8 {[%clk 0:00:04]} 52... Kc5 {[%clk 0:00:20.6]} 53. Ne5
{[%clk 0:00:04.3]} 53... Rxa3 {[%clk 0:00:20.6]} 54. Nxg6 {[%clk 0:00:03.7]}
54... Ra1 {[%clk 0:00:20.8]} 55. Nf4 {[%clk 0:00:03.9]} 55... Rg1+ {[%clk
0:00:20.2]} 56. Kf5 {[%clk 0:00:04]} 56... a3 {[%clk 0:00:20.7]} 57. g6 {[%clk
0:00:04.4]} 57... a2 {[%clk 0:00:20.8]} 58. Ra8 {[%clk 0:00:04.3]} 58... a1=Q
{[%clk 0:00:21.3]} 59. Rxa1 {[%clk 0:00:03.5]} 59... Rxa1 {[%clk 0:00:22.2]} 60.
g7 {[%clk 0:00:03.8]} 60... Ra8 {[%clk 0:00:22.4]} 61. Ne6+ {[%clk 0:00:03.1]}
61... Kc4 {[%clk 0:00:20.3]} 62. Nf8 {[%clk 0:00:04]} 62... b4 {[%clk
0:00:20.6]} 63. g8=Q+ {[%clk 0:00:04.5]} 63... Kc3 {[%clk 0:00:21.5]} 64. Qd5
{[%clk 0:00:03.8]} 64... Ra3 {[%clk 0:00:20.8]} 65. Qe5+ {[%clk 0:00:03.5]}
65... Kc2 {[%clk 0:00:20.8]} 66. Ne6 {[%clk 0:00:04]} 66... b3 {[%clk
0:00:20.9]} 67. Nd4+ {[%clk 0:00:04.9]} 67... Kd3 {[%clk 0:00:20.2]} 68. Qe4+
{[%clk 0:00:02.9]} 68... Kc3 {[%clk 0:00:20.7]} 69. Ne6 {[%clk 0:00:03.5]} 69...
Ra5+ {[%clk 0:00:20.3]} 70. Kf4 {[%clk 0:00:03.8]} 70... b2 {[%clk 0:00:21.2]}
71. Kf3 {[%clk 0:00:04.7]} 71... Ra1 {[%clk 0:00:20.6]} 72. Qd4+ {[%clk
0:00:03.8]} 72... Kc2 {[%clk 0:00:20.2]} 73. Qe4+ {[%clk 0:00:04.2]} 73... Kc3
{[%clk 0:00:20.3]} 74. Qd4+ {[%clk 0:00:03.7]} 74... Kc2 {[%clk 0:00:20.2]} 75.
Qc4+ {[%clk 0:00:04.1]} 75... Kd2 {[%clk 0:00:20.7]} 76. Qb4+ {[%clk 0:00:04.1]}
76... Kc1 {[%clk 0:00:21.1]} 77. Qc3+ {[%clk 0:00:04.1]} 77... Kd1 {[%clk
0:00:21.5]} 78. Qxb2 {[%clk 0:00:03.8]} 78... Rc1 {[%clk 0:00:21.4]} 79. Qe2#
{[%clk 0:00:04.2]} 1-0